[Event "Titled Tuesday Blitz March 15 Late 2022"]
[White "Plazuelo Pascual, Juan"]
[Black "Hoffmann, Asa"]
[WhiteFideId "32059566"]
[BlackFideId "2001470"]
[WhiteElo "2364"]
[BlackElo "2117"]
[Result "0-1"]
[Round "06"]
[TimeControl "180+1"]
[Date "2022.03.16"]
[WhiteClock "0:00:04"]
[BlackClock "0:00:10"]

1. Nf3 {[%clk 0:03:00]}  d6 {[%clk 0:02:58]} 2. d4 {[%clk 0:02:50]}  Bg4 {[%clk 0:02:56]} 3. e4 {[%clk 0:02:48]}  Nf6 {[%clk 0:02:56]} 4. Bd3 {[%clk 0:02:46]}  c6 {[%clk 0:02:55]} 5. h3 {[%clk 0:02:45]}  Bh5 {[%clk 0:02:53]} 6. e5 {[%clk 0:02:28]}  dxe5 {[%clk 0:02:52]} 7. dxe5 {[%clk 0:02:27]}  Nd5 {[%clk 0:02:51]} 8. e6 {[%clk 0:02:26]}  fxe6 {[%clk 0:02:41]} 9. g4 {[%clk 0:02:15]}  Bf7 {[%clk 0:02:36]} 10. Ng5 {[%clk 0:02:09]}  Nd7 {[%clk 0:02:30]} 11. Nxh7 {[%clk 0:01:33]}  Ne5 {[%clk 0:02:29]} 12. Ng5 {[%clk 0:01:32]}  Nb4 {[%clk 0:02:17]} 13. Be4 {[%clk 0:01:26]}  Qxd1+ {[%clk 0:02:08]} 14. Kxd1 {[%clk 0:01:27]}  O-O-O+ {[%clk 0:02:03]} 15. Bd2 {[%clk 0:01:27]}  Bg6 {[%clk 0:01:47]} 16. Ke2 {[%clk 0:01:26]}  Bxe4 {[%clk 0:01:45]} 17. Nxe4 {[%clk 0:01:27]}  Nxc2 {[%clk 0:01:43]} 18. Nbc3 {[%clk 0:01:22]}  Nxa1 {[%clk 0:01:43]} 19. Rxa1 {[%clk 0:01:23]}  Rxh3 {[%clk 0:01:38]} 20. Ng5 {[%clk 0:01:23]}  Rhd3 {[%clk 0:01:30]} 21. Rd1 {[%clk 0:01:10]}  Nc4 {[%clk 0:01:22]} 22. Nce4 {[%clk 0:01:09]}  Nxd2 {[%clk 0:01:10]} 23. Nxd2 {[%clk 0:01:09]}  R8d6 {[%clk 0:01:02]} 24. Nge4 {[%clk 0:00:59]}  R6d5 {[%clk 0:00:58]} 25. Rh1 {[%clk 0:00:57]}  Rd8 {[%clk 0:00:36]} 26. Nf3 {[%clk 0:00:45]}  g6 {[%clk 0:00:31]} 27. Neg5 {[%clk 0:00:45]}  Bg7 {[%clk 0:00:29]} 28. Nxe6 {[%clk 0:00:44]}  Bxb2 {[%clk 0:00:23]} 29. Nxd8 {[%clk 0:00:36]}  Rxd8 {[%clk 0:00:22]} 30. Rh7 {[%clk 0:00:37]}  Ba3 {[%clk 0:00:18]} 31. g5 {[%clk 0:00:33]}  Rd5 {[%clk 0:00:16]} 32. Rg7 {[%clk 0:00:33]}  Rd6 {[%clk 0:00:14]} 33. Nh4 {[%clk 0:00:20]}  Re6+ {[%clk 0:00:13]} 34. Kf3 {[%clk 0:00:18]}  Bc1 {[%clk 0:00:13]} 35. Nxg6 {[%clk 0:00:05]}  Bxg5 {[%clk 0:00:11]} 36. Kg4 {[%clk 0:00:03]}  Bf6 {[%clk 0:00:10]} 37. f4 {[%clk 0:00:04]} 0-1


[Site "https://www.chess.com"]

[Event "Titled Tuesday Blitz March 15 Late 2022"]
[White "Risteski, Emil"]
[Black "Pesotskiy, Mikhail"]
[WhiteFideId "15005267"]
[BlackFideId "34164453"]
[WhiteElo "2070"]
[BlackElo "2010"]
[Result "1/2-1/2"]
[Round "06"]
[TimeControl "180+1"]
[Date "2022.03.16"]
[WhiteClock "0:00:16"]
[BlackClock "0:00:09"]

1. e4 {[%clk 0:02:45]}  e6 {[%clk 0:02:53]} 2. d3 {[%clk 0:02:45]}  c5 {[%clk 0:02:54]} 3. Nd2 {[%clk 0:02:45]}  Nc6 {[%clk 0:02:54]} 4. Ngf3 {[%clk 0:02:44]}  g6 {[%clk 0:02:55]} 5. g3 {[%clk 0:02:45]}  Bg7 {[%clk 0:02:55]} 6. Bg2 {[%clk 0:02:45]}  Nge7 {[%clk 0:02:54]} 7. O-O {[%clk 0:02:46]}  O-O {[%clk 0:02:53]} 8. c3 {[%clk 0:02:47]}  d6 {[%clk 0:02:54]} 9. Re1 {[%clk 0:02:47]}  b5 {[%clk 0:02:52]} 10. h4 {[%clk 0:02:47]}  b4 {[%clk 0:02:47]} 11. Nb1 {[%clk 0:02:36]}  Qb6 {[%clk 0:02:43]} 12. h5 {[%clk 0:02:34]}  a5 {[%clk 0:02:34]} 13. c4 {[%clk 0:02:33]}  a4 {[%clk 0:02:26]} 14. a3 {[%clk 0:01:43]}  Nd4 {[%clk 0:02:12]} 15. Nxd4 {[%clk 0:01:35]}  Bxd4 {[%clk 0:02:12]} 16. Nd2 {[%clk 0:01:22]}  bxa3 {[%clk 0:02:00]} 17. Rxa3 {[%clk 0:01:23]}  Bxb2 {[%clk 0:02:01]} 18. Rxa4 {[%clk 0:01:22]}  Bb7 {[%clk 0:01:35]} 19. Nf3 {[%clk 0:00:42]}  Nc6 {[%clk 0:01:26]} 20. hxg6 {[%clk 0:00:40]}  hxg6 {[%clk 0:01:25]} 21. Rxa8 {[%clk 0:00:39]}  Rxa8 {[%clk 0:01:26]} 22. Ng5 {[%clk 0:00:39]}  Ra1 {[%clk 0:01:07]} 23. Qf3 {[%clk 0:00:23]}  Ne5 {[%clk 0:00:39]} 24. Qe3 {[%clk 0:00:22]}  Bxc1 {[%clk 0:00:22]} 25. Rxc1 {[%clk 0:00:22]}  Rxc1+ {[%clk 0:00:22]} 26. Qxc1 {[%clk 0:00:22]}  Nxd3 {[%clk 0:00:23]} 27. Qd2 {[%clk 0:00:22]}  Ne5 {[%clk 0:00:19]} 28. Qf4 {[%clk 0:00:20]}  Qd8 {[%clk 0:00:14]} 29. Qh4 {[%clk 0:00:20]}  Qf6 {[%clk 0:00:14]} 30. Qh7+ {[%clk 0:00:19]}  Kf8 {[%clk 0:00:14]} 31. Qh4 {[%clk 0:00:19]}  Ke7 {[%clk 0:00:13]} 32. f4 {[%clk 0:00:18]}  Nxc4 {[%clk 0:00:14]} 33. e5 {[%clk 0:00:18]}  dxe5 {[%clk 0:00:13]} 34. Bxb7 {[%clk 0:00:18]}  exf4 {[%clk 0:00:13]} 35. Qxf4 {[%clk 0:00:19]}  Qxf4 {[%clk 0:00:13]} 36. gxf4 {[%clk 0:00:20]}  e5 {[%clk 0:00:14]} 37. fxe5 {[%clk 0:00:19]}  Nxe5 {[%clk 0:00:15]} 38. Bd5 {[%clk 0:00:19]}  f6 {[%clk 0:00:14]} 39. Ne4 {[%clk 0:00:19]}  c4 {[%clk 0:00:14]} 40. Nc3 {[%clk 0:00:19]}  f5 {[%clk 0:00:15]} 41. Kf2 {[%clk 0:00:18]}  Kd6 {[%clk 0:00:15]} 42. Ke3 {[%clk 0:00:18]}  g5 {[%clk 0:00:13]} 43. Kd4 {[%clk 0:00:18]}  g4 {[%clk 0:00:13]} 44. Bg2 {[%clk 0:00:18]}  f4 {[%clk 0:00:12]} 45. Be4 {[%clk 0:00:17]}  f3 {[%clk 0:00:10]} 46. Nd1 {[%clk 0:00:17]}  g3 {[%clk 0:00:09]} 47. Ke3 {[%clk 0:00:17]}  f2 {[%clk 0:00:09]} 48. Bg2 {[%clk 0:00:16]}  Kc5 {[%clk 0:00:08]} 49. Kf4 {[%clk 0:00:16]}  Kd4 {[%clk 0:00:07]} 50. Kxg3 {[%clk 0:00:16]}  c3 {[%clk 0:00:08]} 51. Nxc3 {[%clk 0:00:16]}  Kxc3 {[%clk 0:00:09]} 52. Kxf2 {[%clk 0:00:16]} 1/2-1/2


[Site "https://www.chess.com"]

[Event "Titled Tuesday Blitz March 15 Late 2022"]
[White "Roberson, Peter T"]
[Black "Najer, Evgeniy"]
[WhiteFideId "412384"]
[BlackFideId "4118987"]
[WhiteElo "2346"]
[BlackElo "2562"]
[Result "0-1"]
[Round "06"]
[TimeControl "180+1"]
[Date "2022.03.16"]
[WhiteClock "0:00:02"]
[BlackClock "0:00:10"]

1. e4 {[%clk 0:03:00]}  c6 {[%clk 0:02:57]} 2. Nf3 {[%clk 0:02:59]}  d5 {[%clk 0:02:57]} 3. exd5 {[%clk 0:03:00]}  cxd5 {[%clk 0:02:57]} 4. Ne5 {[%clk 0:03:01]}  Nc6 {[%clk 0:02:56]} 5. d4 {[%clk 0:03:01]}  Qb6 {[%clk 0:02:56]} 6. Nxc6 {[%clk 0:02:44]}  Qxc6 {[%clk 0:02:40]} 7. Bd3 {[%clk 0:02:42]}  Nf6 {[%clk 0:02:38]} 8. Qe2 {[%clk 0:02:42]}  a6 {[%clk 0:02:36]} 9. O-O {[%clk 0:02:42]}  Bg4 {[%clk 0:02:36]} 10. f3 {[%clk 0:02:35]}  Bh5 {[%clk 0:02:35]} 11. Nd2 {[%clk 0:02:21]}  e6 {[%clk 0:02:32]} 12. c3 {[%clk 0:02:19]}  Bg6 {[%clk 0:02:31]} 13. Re1 {[%clk 0:02:18]}  Bd6 {[%clk 0:02:30]} 14. Nf1 {[%clk 0:02:18]}  O-O {[%clk 0:02:23]} 15. Bg5 {[%clk 0:02:18]}  Nd7 {[%clk 0:02:19]} 16. a4 {[%clk 0:02:10]}  Rfc8 {[%clk 0:02:16]} 17. Ne3 {[%clk 0:02:01]}  Bxd3 {[%clk 0:02:02]} 18. Qxd3 {[%clk 0:02:01]}  b5 {[%clk 0:01:55]} 19. axb5 {[%clk 0:01:46]}  axb5 {[%clk 0:01:55]} 20. Bh4 {[%clk 0:01:26]}  h6 {[%clk 0:01:52]} 21. Bg3 {[%clk 0:01:25]}  b4 {[%clk 0:01:43]} 22. Bxd6 {[%clk 0:01:19]}  Qxd6 {[%clk 0:01:42]} 23. c4 {[%clk 0:01:19]}  dxc4 {[%clk 0:01:34]} 24. Nxc4 {[%clk 0:01:20]}  Qc6 {[%clk 0:01:18]} 25. b3 {[%clk 0:01:03]}  Nf6 {[%clk 0:01:17]} 26. Rec1 {[%clk 0:00:49]}  Nd5 {[%clk 0:00:50]} 27. Kf2 {[%clk 0:00:36]}  Nc3 {[%clk 0:00:47]} 28. Ne5 {[%clk 0:00:28]}  Qd5 {[%clk 0:00:42]} 29. Rxa8 {[%clk 0:00:18]}  Rxa8 {[%clk 0:00:36]} 30. Qc4 {[%clk 0:00:19]}  Ra2+ {[%clk 0:00:36]} 31. Kg3 {[%clk 0:00:19]}  Ne2+ {[%clk 0:00:35]} 32. Kh4 {[%clk 0:00:08]}  Nxc1 {[%clk 0:00:32]} 33. Qxc1 {[%clk 0:00:03]}  Qxd4+ {[%clk 0:00:31]} 34. Ng4 {[%clk 0:00:03]}  Rxg2 {[%clk 0:00:24]} 35. Kh5 {[%clk 0:00:03]}  Qd5+ {[%clk 0:00:18]} 36. Kh4 {[%clk 0:00:03]}  Qxf3 {[%clk 0:00:15]} 37. Qc8+ {[%clk 0:00:02]}  Kh7 {[%clk 0:00:14]} 38. h3 {[%clk 0:00:03]}  g5+ {[%clk 0:00:10]} 39. Kh5 {[%clk 0:00:02]}  Qxh3# {[%clk 0:00:10]} 0-1


[Site "https://www.chess.com"]

[Event "Titled Tuesday Blitz March 15 Late 2022"]
[White "Romanchuk, Viktor"]
[Black "Farmani Anosheh, Armin"]
[WhiteFideId "14109271"]
[BlackFideId "24613240"]
[WhiteElo "2242"]
[BlackElo "2289"]
[Result "0-1"]
[Round "06"]
[TimeControl "180+1"]
[Date "2022.03.16"]
[WhiteClock "0:00:16"]
[BlackClock "0:00:18"]

1. d4 {[%clk 0:02:40]}  Nf6 {[%clk 0:02:59]} 2. c4 {[%clk 0:02:40]}  e6 {[%clk 0:02:59]} 3. Nc3 {[%clk 0:02:40]}  Bb4 {[%clk 0:03:00]} 4. e3 {[%clk 0:02:40]}  O-O {[%clk 0:02:59]} 5. Ne2 {[%clk 0:02:41]}  c6 {[%clk 0:02:58]} 6. a3 {[%clk 0:02:41]}  Ba5 {[%clk 0:02:58]} 7. Qc2 {[%clk 0:02:42]}  d5 {[%clk 0:02:57]} 8. Ng3 {[%clk 0:02:43]}  Re8 {[%clk 0:02:39]} 9. Be2 {[%clk 0:02:42]}  Nbd7 {[%clk 0:02:27]} 10. O-O {[%clk 0:02:41]}  Qe7 {[%clk 0:02:05]} 11. b4 {[%clk 0:02:18]}  Bc7 {[%clk 0:02:04]} 12. e4 {[%clk 0:02:19]}  dxe4 {[%clk 0:01:49]} 13. Ncxe4 {[%clk 0:02:13]}  Nxe4 {[%clk 0:01:40]} 14. Nxe4 {[%clk 0:02:14]}  f5 {[%clk 0:01:40]} 15. Ng3 {[%clk 0:02:08]}  Qf7 {[%clk 0:01:33]} 16. Bb2 {[%clk 0:02:01]}  Nf6 {[%clk 0:01:32]} 17. f4 {[%clk 0:01:48]}  h5 {[%clk 0:01:17]} 18. Nh1 {[%clk 0:01:42]}  h4 {[%clk 0:01:14]} 19. Nf2 {[%clk 0:01:42]}  Qg6 {[%clk 0:01:07]} 20. Nd3 {[%clk 0:01:28]}  h3 {[%clk 0:00:53]} 21. g3 {[%clk 0:01:27]}  Ng4 {[%clk 0:00:53]} 22. Qd2 {[%clk 0:01:14]}  b6 {[%clk 0:00:50]} 23. Ne5 {[%clk 0:01:00]}  Bxe5 {[%clk 0:00:45]} 24. fxe5 {[%clk 0:01:01]}  c5 {[%clk 0:00:36]} 25. bxc5 {[%clk 0:00:57]}  Bb7 {[%clk 0:00:34]} 26. c6 {[%clk 0:00:55]}  Bxc6 {[%clk 0:00:33]} 27. d5 {[%clk 0:00:55]}  Bb7 {[%clk 0:00:30]} 28. Bf3 {[%clk 0:00:42]}  exd5 {[%clk 0:00:25]} 29. Bxd5+ {[%clk 0:00:41]}  Bxd5 {[%clk 0:00:25]} 30. Qxd5+ {[%clk 0:00:41]}  Kh7 {[%clk 0:00:23]} 31. e6 {[%clk 0:00:41]}  Rad8 {[%clk 0:00:19]} 32. Qxf5 {[%clk 0:00:37]}  Qxf5 {[%clk 0:00:19]} 33. Rxf5 {[%clk 0:00:38]}  Rxe6 {[%clk 0:00:20]} 34. Rf7 {[%clk 0:00:34]}  Rg6 {[%clk 0:00:19]} 35. Raf1 {[%clk 0:00:31]}  Rd2 {[%clk 0:00:19]} 36. Bc3 {[%clk 0:00:30]}  Rg2+ {[%clk 0:00:19]} 37. Kh1 {[%clk 0:00:30]}  Rxh2+ {[%clk 0:00:19]} 38. Kg1 {[%clk 0:00:30]}  Rc2 {[%clk 0:00:19]} 39. Bd4 {[%clk 0:00:28]}  Rg2+ {[%clk 0:00:17]} 40. Kh1 {[%clk 0:00:28]}  Rxg3 {[%clk 0:00:18]} 41. Rg1 {[%clk 0:00:24]}  Rxg1+ {[%clk 0:00:18]} 42. Bxg1 {[%clk 0:00:24]}  Nf6 {[%clk 0:00:18]} 43. Kh2 {[%clk 0:00:22]}  Rg2+ {[%clk 0:00:18]} 44. Kh1 {[%clk 0:00:22]}  Nh5 {[%clk 0:00:19]} 45. Bh2 {[%clk 0:00:21]}  Ra2 {[%clk 0:00:19]} 46. Bb8 {[%clk 0:00:20]}  Rxa3 {[%clk 0:00:18]} 47. Kh2 {[%clk 0:00:19]}  Rc3 {[%clk 0:00:17]} 48. Bxa7 {[%clk 0:00:17]}  Kg6 {[%clk 0:00:17]} 49. Rc7 {[%clk 0:00:16]}  Rxc4 {[%clk 0:00:18]} 50. Kxh3 {[%clk 0:00:16]}  Rxc7 {[%clk 0:00:18]} 0-1


[Site "https://www.chess.com"]

[Event "Titled Tuesday Blitz March 15 Late 2022"]
[White "Rosen, Eric"]
[Black "Yoo, Christopher Woojin"]
[WhiteFideId "2032562"]
[BlackFideId "30909694"]
[WhiteElo "2362"]
[BlackElo "2105"]
[Result "1/2-1/2"]
[Round "06"]
[TimeControl "180+1"]
[Date "2022.03.15"]
[WhiteClock "0:00:02"]
[BlackClock "0:00:13"]

1. d4 {[%clk 0:03:00]}  Nf6 {[%clk 0:02:55]} 2. Bf4 {[%clk 0:02:57]}  c5 {[%clk 0:02:55]} 3. e3 {[%clk 0:02:57]}  Nd5 {[%clk 0:02:55]} 4. Bg3 {[%clk 0:02:57]}  Qb6 {[%clk 0:02:55]} 5. b3 {[%clk 0:02:52]}  cxd4 {[%clk 0:02:55]} 6. exd4 {[%clk 0:02:53]}  g6 {[%clk 0:02:52]} 7. c3 {[%clk 0:02:53]}  Bg7 {[%clk 0:02:51]} 8. Nf3 {[%clk 0:02:53]}  O-O {[%clk 0:02:50]} 9. Be2 {[%clk 0:02:54]}  d6 {[%clk 0:02:50]} 10. O-O {[%clk 0:02:54]}  Nc6 {[%clk 0:02:50]} 11. Re1 {[%clk 0:02:54]}  Bf5 {[%clk 0:02:39]} 12. Bc4 {[%clk 0:02:53]}  Nf6 {[%clk 0:02:37]} 13. Nbd2 {[%clk 0:02:51]}  d5 {[%clk 0:02:36]} 14. Be2 {[%clk 0:02:47]}  Rac8 {[%clk 0:02:36]} 15. Qc1 {[%clk 0:01:58]}  Ne4 {[%clk 0:02:28]} 16. Qb2 {[%clk 0:01:44]}  Nxc3 {[%clk 0:02:04]} 17. Qxc3 {[%clk 0:01:36]}  Nxd4 {[%clk 0:02:01]} 18. Qe3 {[%clk 0:01:32]}  Nc2 {[%clk 0:01:48]} 19. Qxb6 {[%clk 0:01:32]}  axb6 {[%clk 0:01:49]} 20. Rad1 {[%clk 0:01:05]}  Nxe1 {[%clk 0:01:48]} 21. Nxe1 {[%clk 0:01:06]}  Rfd8 {[%clk 0:01:32]} 22. Bd3 {[%clk 0:01:04]}  Bg4 {[%clk 0:01:24]} 23. f3 {[%clk 0:01:02]}  Bd7 {[%clk 0:01:23]} 24. Bf2 {[%clk 0:01:02]}  Rc6 {[%clk 0:01:15]} 25. Bb5 {[%clk 0:01:01]}  Rd6 {[%clk 0:01:14]} 26. Bxd7 {[%clk 0:00:49]}  R8xd7 {[%clk 0:01:15]} 27. Rc1 {[%clk 0:00:49]}  Bh6 {[%clk 0:01:06]} 28. Rc8+ {[%clk 0:00:41]}  Rd8 {[%clk 0:01:06]} 29. Rxd8+ {[%clk 0:00:35]}  Rxd8 {[%clk 0:01:07]} 30. Bxb6 {[%clk 0:00:35]}  Rd6 {[%clk 0:01:06]} 31. Ba5 {[%clk 0:00:34]}  Ra6 {[%clk 0:01:06]} 32. Bb4 {[%clk 0:00:28]}  Rxa2 {[%clk 0:01:05]} 33. Nf1 {[%clk 0:00:26]}  Rb2 {[%clk 0:00:57]} 34. Bxe7 {[%clk 0:00:20]}  Rxb3 {[%clk 0:00:58]} 35. g3 {[%clk 0:00:17]}  d4 {[%clk 0:00:55]} 36. f4 {[%clk 0:00:15]}  Bg7 {[%clk 0:00:53]} 37. Kf2 {[%clk 0:00:15]}  b5 {[%clk 0:00:51]} 38. Ke2 {[%clk 0:00:14]}  Rc3 {[%clk 0:00:44]} 39. Nd3 {[%clk 0:00:14]}  Rc6 {[%clk 0:00:28]} 40. Bb4 {[%clk 0:00:12]}  Re6+ {[%clk 0:00:20]} 41. Kd1 {[%clk 0:00:13]}  Bf8 {[%clk 0:00:19]} 42. Bxf8 {[%clk 0:00:12]}  Kxf8 {[%clk 0:00:20]} 43. Nd2 {[%clk 0:00:08]}  Re3 {[%clk 0:00:21]} 44. Nb4 {[%clk 0:00:07]}  h5 {[%clk 0:00:18]} 45. Nc2 {[%clk 0:00:07]}  Rd3 {[%clk 0:00:14]} 46. Ke2 {[%clk 0:00:06]}  Rc3 {[%clk 0:00:14]} 47. Nxd4 {[%clk 0:00:07]}  b4 {[%clk 0:00:15]} 48. N2b3 {[%clk 0:00:07]}  Ke7 {[%clk 0:00:15]} 49. Kd2 {[%clk 0:00:07]}  Kd6 {[%clk 0:00:14]} 50. Nb5+ {[%clk 0:00:07]}  Kd5 {[%clk 0:00:15]} 51. Nxc3+ {[%clk 0:00:06]}  bxc3+ {[%clk 0:00:16]} 52. Kd3 {[%clk 0:00:05]}  c2 {[%clk 0:00:15]} 53. Nc1 {[%clk 0:00:06]}  f6 {[%clk 0:00:14]} 54. Ne2 {[%clk 0:00:05]}  g5 {[%clk 0:00:15]} 55. fxg5 {[%clk 0:00:04]}  fxg5 {[%clk 0:00:16]} 56. h3 {[%clk 0:00:04]}  Ke5 {[%clk 0:00:14]} 57. Kxc2 {[%clk 0:00:03]}  Ke4 {[%clk 0:00:14]} 58. h4 {[%clk 0:00:03]}  gxh4 {[%clk 0:00:09]} 59. gxh4 {[%clk 0:00:04]}  Kf3 {[%clk 0:00:09]} 60. Kd3 {[%clk 0:00:02]}  Kg4 {[%clk 0:00:09]} 61. Ke4 {[%clk 0:00:02]}  Kxh4 {[%clk 0:00:10]} 62. Kf4 {[%clk 0:00:03]}  Kh3 {[%clk 0:00:11]} 63. Kf3 {[%clk 0:00:03]}  Kh4 {[%clk 0:00:12]} 64. Kf4 {[%clk 0:00:03]}  Kh3 {[%clk 0:00:12]} 65. Nd4 {[%clk 0:00:03]}  Kh4 {[%clk 0:00:13]} 66. Nf3+ {[%clk 0:00:03]}  Kh3 {[%clk 0:00:13]} 67. Ng1+ {[%clk 0:00:03]}  Kg2 {[%clk 0:00:12]} 68. Nf3 {[%clk 0:00:03]}  h4 {[%clk 0:00:13]} 69. Nxh4+ {[%clk 0:00:02]} 1/2-1/2


[Site "https://www.chess.com"]

[Event "Titled Tuesday Blitz March 15 Late 2022"]
[White "Rozman, Levy"]
[Black "Le Goff, Ronan"]
[WhiteFideId "2039877"]
[BlackFideId "612073"]
[WhiteElo "2376"]
[BlackElo "2276"]
[Result "1-0"]
[Round "06"]
[TimeControl "180+1"]
[Date "2022.03.16"]
[WhiteClock "0:00:14"]
[BlackClock "0:00:06"]

1. d4 {[%clk 0:02:55]}  Nf6 {[%clk 0:02:59]} 2. Bg5 {[%clk 0:02:55]}  d5 {[%clk 0:02:53]} 3. e3 {[%clk 0:02:54]}  e6 {[%clk 0:02:50]} 4. Nd2 {[%clk 0:02:54]}  Be7 {[%clk 0:02:48]} 5. Bd3 {[%clk 0:02:54]}  h6 {[%clk 0:02:45]} 6. Bxf6 {[%clk 0:02:53]}  Bxf6 {[%clk 0:02:45]} 7. f4 {[%clk 0:02:53]}  c5 {[%clk 0:02:43]} 8. c3 {[%clk 0:02:45]}  cxd4 {[%clk 0:02:42]} 9. exd4 {[%clk 0:02:45]}  Qc7 {[%clk 0:02:41]} 10. g3 {[%clk 0:02:42]}  g5 {[%clk 0:02:21]} 11. Ne2 {[%clk 0:02:40]}  Nc6 {[%clk 0:02:16]} 12. Nf3 {[%clk 0:02:27]}  Bd7 {[%clk 0:02:01]} 13. Ne5 {[%clk 0:02:21]}  gxf4 {[%clk 0:01:55]} 14. gxf4 {[%clk 0:02:20]}  Nxe5 {[%clk 0:01:44]} 15. fxe5 {[%clk 0:02:19]}  Bh4+ {[%clk 0:01:44]} 16. Kd2 {[%clk 0:02:10]}  O-O-O {[%clk 0:01:31]} 17. Qb3 {[%clk 0:01:49]}  Kb8 {[%clk 0:01:27]} 18. Raf1 {[%clk 0:01:46]}  Bg5+ {[%clk 0:01:19]} 19. Kc2 {[%clk 0:01:40]}  Rhf8 {[%clk 0:00:35]} 20. h4 {[%clk 0:01:25]}  Be7 {[%clk 0:00:33]} 21. Nf4 {[%clk 0:01:22]}  Qa5 {[%clk 0:00:24]} 22. Rf3 {[%clk 0:00:36]}  Ba4 {[%clk 0:00:24]} 23. Rhf1 {[%clk 0:00:37]}  Bxb3+ {[%clk 0:00:24]} 24. axb3 {[%clk 0:00:38]}  a6 {[%clk 0:00:19]} 25. Ne2 {[%clk 0:00:38]}  Bxh4 {[%clk 0:00:18]} 26. Nf4 {[%clk 0:00:35]}  Be7 {[%clk 0:00:17]} 27. Nh5 {[%clk 0:00:35]}  Qc7 {[%clk 0:00:16]} 28. Nf4 {[%clk 0:00:30]}  Rg8 {[%clk 0:00:15]} 29. Ne2 {[%clk 0:00:29]}  Rdf8 {[%clk 0:00:15]} 30. Rh1 {[%clk 0:00:29]}  Bg5 {[%clk 0:00:14]} 31. Bh7 {[%clk 0:00:28]}  Rg7 {[%clk 0:00:14]} 32. Bd3 {[%clk 0:00:29]}  f6 {[%clk 0:00:14]} 33. Rhf1 {[%clk 0:00:28]}  f5 {[%clk 0:00:14]} 34. Ng3 {[%clk 0:00:29]}  Rfg8 {[%clk 0:00:13]} 35. Nh5 {[%clk 0:00:29]}  Rf7 {[%clk 0:00:13]} 36. c4 {[%clk 0:00:30]}  Bd8 {[%clk 0:00:13]} 37. Kb1 {[%clk 0:00:30]}  Rg2 {[%clk 0:00:13]} 38. Nf4 {[%clk 0:00:30]}  Rh2 {[%clk 0:00:13]} 39. Nxe6 {[%clk 0:00:30]}  Qd7 {[%clk 0:00:12]} 40. Nc5 {[%clk 0:00:30]}  Qe7 {[%clk 0:00:11]} 41. cxd5 {[%clk 0:00:30]}  Bb6 {[%clk 0:00:11]} 42. d6 {[%clk 0:00:31]}  Qg5 {[%clk 0:00:10]} 43. Na4 {[%clk 0:00:25]}  Qd2 {[%clk 0:00:09]} 44. e6 {[%clk 0:00:25]}  Rf6 {[%clk 0:00:07]} 45. e7 {[%clk 0:00:25]}  Re6 {[%clk 0:00:07]} 46. Bxf5 {[%clk 0:00:22]}  Re1+ {[%clk 0:00:05]} 47. Ka2 {[%clk 0:00:21]}  Bxd4 {[%clk 0:00:04]} 48. Rxe1 {[%clk 0:00:14]}  Qxe1 {[%clk 0:00:05]} 49. Bg6 {[%clk 0:00:14]}  Bxb2 {[%clk 0:00:03]} 50. e8=Q+ {[%clk 0:00:15]}  Qxe8 {[%clk 0:00:03]} 51. Bxe8 {[%clk 0:00:16]}  Be5+ {[%clk 0:00:03]} 52. Kb1 {[%clk 0:00:14]}  Bxd6 {[%clk 0:00:04]} 53. Bf7 {[%clk 0:00:14]}  b5 {[%clk 0:00:04]} 54. Nb6 {[%clk 0:00:12]}  Be5 {[%clk 0:00:04]} 55. Nd7+ {[%clk 0:00:12]}  Kc7 {[%clk 0:00:05]} 56. Nxe5 {[%clk 0:00:13]}  Kd6 {[%clk 0:00:05]} 57. Ng4 {[%clk 0:00:13]}  Rh1+ {[%clk 0:00:05]} 58. Kc2 {[%clk 0:00:14]}  Rg1 {[%clk 0:00:06]} 59. Ne3 {[%clk 0:00:14]}  Re1 {[%clk 0:00:06]} 60. Kd2 {[%clk 0:00:14]}  Rh1 {[%clk 0:00:06]} 61. Rf1 {[%clk 0:00:14]}  Kc5 {[%clk 0:00:06]} 62. Rxh1 {[%clk 0:00:14]} 1-0


[Site "https://www.chess.com"]

[Event "Titled Tuesday Blitz March 15 Late 2022"]
[White "Sanchez, Robert"]
[Black "Donatti, Alvaro"]
[WhiteFideId "2034360"]
[BlackFideId "3000303"]
[WhiteElo "2314"]
[BlackElo "2138"]
[Result "1-0"]
[Round "06"]
[TimeControl "180+1"]
[Date "2022.03.16"]
[WhiteClock "0:01:29"]
[BlackClock "0:01:26"]

1. e4 {[%clk 0:02:49]}  c5 {[%clk 0:02:59]} 2. d4 {[%clk 0:02:49]}  cxd4 {[%clk 0:02:58]} 3. c3 {[%clk 0:02:50]}  e6 {[%clk 0:02:57]} 4. cxd4 {[%clk 0:02:50]}  d5 {[%clk 0:02:57]} 5. e5 {[%clk 0:02:50]}  Nc6 {[%clk 0:02:57]} 6. Nf3 {[%clk 0:02:50]}  Qb6 {[%clk 0:02:57]} 7. Nc3 {[%clk 0:02:51]}  Bd7 {[%clk 0:02:56]} 8. Bd3 {[%clk 0:02:49]}  Nh6 {[%clk 0:02:53]} 9. O-O {[%clk 0:02:48]}  Be7 {[%clk 0:02:52]} 10. h3 {[%clk 0:02:40]}  Nxd4 {[%clk 0:02:50]} 11. Nxd4 {[%clk 0:02:40]}  Qxd4 {[%clk 0:02:49]} 12. Qe2 {[%clk 0:02:39]}  Nf5 {[%clk 0:02:37]} 13. Bxf5 {[%clk 0:02:37]}  exf5 {[%clk 0:02:36]} 14. Rd1 {[%clk 0:02:38]}  Qh4 {[%clk 0:02:30]} 15. Nxd5 {[%clk 0:02:34]}  O-O {[%clk 0:02:28]} 16. g3 {[%clk 0:02:31]}  Qxh3 {[%clk 0:01:55]} 17. Nxe7+ {[%clk 0:02:28]}  Kh8 {[%clk 0:01:55]} 18. Rxd7 {[%clk 0:02:24]}  f4 {[%clk 0:01:55]} 19. Rd3 {[%clk 0:02:14]}  fxg3 {[%clk 0:01:55]} 20. Rxg3 {[%clk 0:02:11]}  Qe6 {[%clk 0:01:54]} 21. Qg4 {[%clk 0:02:05]}  Qxe5 {[%clk 0:01:54]} 22. Bf4 {[%clk 0:01:52]}  Qxb2 {[%clk 0:01:52]} 23. Rd1 {[%clk 0:01:48]}  Rfe8 {[%clk 0:01:36]} 24. Rd7 {[%clk 0:01:35]}  Qb1+ {[%clk 0:01:28]} 25. Kh2 {[%clk 0:01:30]}  Qe4 {[%clk 0:01:26]} 26. Qxg7# {[%clk 0:01:29]} 1-0


[Site "https://www.chess.com"]